[Event "FIDE WYCC Open U14 2023"]
[Site "Montesilvano"]
[Date "2023.11.15"]
[Round "3.2"]
[White "Farias, David Nuno M E"]
[Black "Goh, Zi Han"]
[Result "1/2-1/2"]
[ECO "B53"]
[WhiteElo "2149"]
[BlackElo "2333"]
[Annotator "RC"]
[PlyCount "103"]
[EventDate "2023.11.13"]
[EventType "swiss"]
[EventCountry "ITA"]
[SourceTitle "playchess.com"]
[Source "ChessBase"]
[SourceQuality "1"]
[TimeControl "40/5400+30:1800+30"]

1. e4 {[%emt 0:00:22]} c5 {[%emt 0:01:32]} 2. Nf3 {[%emt 0:00:38]} d6 {[%emt 0:00:16]} 3. d4 {[%emt 0:00:25]} cxd4 {[%emt 0:00:07]} 4. Qxd4 {[%emt 0:00:23]} Nc6 {[%emt 0:00:57]} 5. Bb5 {[%emt 0:00:21]} Bd7 {[%emt 0:00:54]} 6. Qd3 {[%emt 0:00:31]} g6 {[%emt 0:05:36]} 7. c4 {[%emt 0:02:23]} Bg7 {[%emt 0:00:10]} 8. Nc3 {[%emt 0:01:01]} Nf6 {[%emt 0:00:36]} 9. h3 {[%emt 0:01:04]} a6 {[%emt 0:00:38]} 10. Bxc6 {[%emt 0:00:35]} Bxc6 {[%emt 0:00:07]} 11. O-O {[%emt 0:07:25]} O-O {[%emt 0:07:41]} 12. Nd4 {[%emt 0:01:55]} Rc8 {[%emt 0:04:07]} 13. Be3 {[%emt 0:05:50]} Nd7 {[%emt 0:01:08]} 14. Rac1 {[%emt 0:02:55]} Qe8 {[%emt 0:10:55]} 15. Rfd1 {[%emt 0:17:03]} Nc5 {[%emt 0:05:13]} 16. Qc2 {[%emt 0:05:05]} b5 {[%emt 0:02:09]} 17. b4 {[%emt 0:08:07]} Nd7 {[%emt 0:11:13]} 18. cxb5 {[%emt 0:14:22]} Bxb5 {[%emt 0:00:21]} 19. Ndxb5 {[%emt 0:02:26]} axb5 {[%emt 0:00:06]} 20. Qd3 {[%emt 0:01:15]} Rc4 {[%emt 0:02:16]} 21. Nd5 {[%emt 0:05:30]} Ne5 {[%emt 0:02:20]} 22. Qe2 {[%emt 0:02:41]} e6 {[%emt 0:15:22]} 23. Rxc4 {[%emt 0:05:18]} Nxc4 {[%emt 0:01:38]} 24. Nb6 {[%emt 0:00:47]} Nxe3 {[%emt 0:01:36]} 25. Qxe3 {[%emt 0:00:20]} Qc6 {[%emt 0:00:27]} 26. Rc1 {[%emt 0:07:47]} Qb7 {[%emt 0:00:25]} 27. Rd1 {[%emt 0:01:09]} Rb8 {[%emt 0:02:16]} 28. Rxd6 {[%emt 0:00:33]} Bf8 {[%emt 0:00:42]} 29. Rd7 {[%emt 0:01:04]} Qxb6 {[%emt 0:06:46]} 30. Qf4 {[%emt 0:00:12]} Be7 {[%emt 0:05:29]} 31. Rxe7 {[%emt 0:00:18]} Rf8 {[%emt 0:00:07]} 32. Qd2 {[%emt 0:02:53]} Rd8 {[%emt 0:00:39]} 33. Rd7 {[%emt 0:01:34]} Rxd7 {[%emt 0:00:03]} 34. Qxd7 {[%emt 0:00:01]} Qa6 {[%emt 0:00:15]} 35. Qd8+ {[%emt 0:01:13]} Kg7 {[%emt 0:00:01]} 36. Qd4+ {[%emt 0:00:09]} Kg8 {[%emt 0:00:13]} 37. Qd2 {[%emt 0:01:59]} Qc6 {[%emt 0:00:02]} 38. Qd8+ {[%emt 0:00:58]} Kg7 {[%emt 0:00:01]} 39. Qd4+ {[%emt 0:00:01]} Kg8 {[%emt 0:00:11]} 40. Qc5 {[%emt 0:00:00]} Qd7 {[%emt 0:00:00]} 41. Kh2 {[%emt 0:04:13]} h5 {[%emt 0:07:13]} 42. a3 {[%emt 0:02:35]} Kg7 {[%emt 0:06:00]} 43. Qe5+ {[%emt 0:02:18]} Kg8 {[%emt 0:00:29]} 44. g3 {[%emt 0:03:50]} Qd2 {[%emt 0:01:07]} 45. Qc5 {[%emt 0:00:56]} Qd3 {[%emt 0:00:33]} 46. Qc6 {[%emt 0:01:44]} h4 {[%emt 0:02:25]} 47. gxh4 {[%emt 0:04:20]} Qf3 {[%emt 0:02:24]} 48. Kg1 {[%emt 0:01:12]} Qxh3 {[%emt 0:01:03]} 49. Qxb5 {[%emt 0:00:55]} Qg4+ {[%emt 0:00:12]} 50. Kf1 {[%emt 0:00:06]} Qd1+ {[%emt 0:00:07]} 51. Kg2 {[%emt 0:00:05]} Qg4+ {[%emt 0:00:06]} 52. Kf1 {[%emt 0:00:04]} 1/2-1/2

[Event "FIDE WYCC Open U14 2023"]
[Site "Montesilvano"]
[Date "2023.11.15"]
[Round "3.3"]
[White "Kozlovic, Jernej"]
[Black "Vingris, Mikelis"]
[Result "1/2-1/2"]
[ECO "B51"]
[WhiteElo "2263"]
[BlackElo "2127"]
[Annotator "ChessBase"]
[PlyCount "66"]
[EventDate "2023.11.13"]
[EventType "swiss"]
[EventCountry "ITA"]
[SourceTitle "playchess.com"]
[Source "ChessBase"]
[SourceQuality "1"]
[TimeControl "40/5400+30:1800+30"]

1. e4 {[%emt 0:00:04]} c5 {[%emt 0:00:03]} 2. Nf3 {[%emt 0:00:43]} d6 {[%emt 0:00:12]} 3. Bb5+ {[%emt 0:00:18]} Nd7 {[%emt 0:00:07]} 4. O-O {[%emt 0:00:46]} Ngf6 {[%emt 0:00:28]} 5. Re1 {[%emt 0:01:13]} g6 {[%emt 0:03:59]} 6. c3 {[%emt 0:02:04]} a6 {[%emt 0:07:58]} 7. Bxd7+ {[%emt 0:01:33]} Bxd7 {[%emt 0:00:29]} 8. d4 {[%emt 0:01:18]} cxd4 {[%emt 0:23:40]} 9. cxd4 {[%emt 0:00:15]} Bc6 {[%emt 0:06:56]} 10. Nc3 {[%emt 0:10:58]} Bg7 {[%emt 0:03:09]} 11. Bf4 {[%emt 0:15:39]} O-O {[%emt 0:12:15]} 12. Qd2 {[%emt 0:02:09]} b5 {[%emt 0:11:08]} 13. a3 {[%emt 0:07:32]} Rc8 {[%emt 0:01:14]} 14. Bh6 {[%emt 0:03:18]} Bb7 {[%emt 0:02:27]} 15. Rad1 {[%emt 0:09:48]} Qb6 {[%emt 0:09:00]} 16. Bxg7 {[%emt 0:10:30]} Kxg7 {[%emt 0:00:07]} 17. e5 {[%emt 0:01:30]} Nd5 {[%emt 0:00:48]} 18. exd6 {[%emt 0:04:25]} exd6 {[%emt 0:01:38]} 19. Ne2 {[%emt 0:05:17]} Qc7 {[%emt 0:06:52]} 20. Rc1 {[%emt 0:01:56]} Qd7 {[%emt 0:00:19]} 21. Qd3 {[%emt 0:03:07]} Rxc1 {[%emt 0:00:51]} 22. Rxc1 {[%emt 0:00:24]} Re8 {[%emt 0:00:57]} 23. Qd2 {[%emt 0:03:17]} Qg4 {[%emt 0:00:41]} 24. h3 {[%emt 0:00:41]} Qf5 {[%emt 0:00:18]} 25. Ng3 {[%emt 0:00:14]} Qf6 {[%emt 0:00:34]} 26. Re1 {[%emt 0:05:37]} Rxe1+ 27. Nxe1 {[%emt 0:00:25]} Nf4 {[%emt 0:01:07]} 28. Kh2 {[%emt 0:03:26]} Qh4 {[%emt 0:01:33]} 29. f3 {[%emt 0:01:20]} Nd5 {[%emt 0:03:30]} 30. Ne4 {[%emt 0:02:24]} Qe7 {[%emt 0:00:06]} 31. Nc2 {[%emt 0:01:46]} f5 {[%emt 0:01:51]} 32. Nc3 {[%emt 0:00:13]} Nb6 {[%emt 0:00:32]} 33. Qe2 {[%emt 0:02:05]} Qf7 {[%emt 0:01:26]} 1/2-1/2

[Event "FIDE WYCC Open U14 2023"]
[Site "Montesilvano"]
[Date "2023.11.15"]
[Round "3.4"]
[White "Medhus, Vitus Bondo"]
[Black "Akhmedov, David"]
[Result "1-0"]
[ECO "B23"]
[WhiteElo "2108"]
[BlackElo "2240"]
[Annotator "ChessBase"]
[PlyCount "91"]
[EventDate "2023.11.13"]
[EventType "swiss"]
[EventCountry "ITA"]
[SourceTitle "playchess.com"]
[Source "ChessBase"]
[SourceQuality "1"]
[TimeControl "40/5400+30:1800+30"]

1. e4 {[%emt 0:00:04]} c5 {[%emt 0:00:03]} 2. Nc3 {[%emt 0:00:07]} Nc6 {[%emt 0:00:06]} 3. Nge2 {[%emt 0:00:15]} g6 {[%emt 0:00:05]} 4. g3 {[%emt 0:01:00]} Bg7 {[%emt 0:00:04]} 5. Bg2 {[%emt 0:00:11]} Rb8 {[%emt 0:01:10]} 6. a4 {[%emt 0:01:59]} a6 {[%emt 0:12:21]} 7. b3 {[%emt 0:02:02]} e6 {[%emt 0:03:21]} 8. f4 {[%emt 0:07:57]} d6 {[%emt 0:02:24]} 9. O-O {[%emt 0:03:07]} Nge7 {[%emt 0:00:13]} 10. Bb2 {[%emt 0:04:20]} O-O {[%emt 0:00:33]} 11. Qc1 {[%emt 0:03:40]} d5 {[%emt 0:12:06]} 12. d3 {[%emt 0:02:24]} d4 {[%emt 0:20:29]} 13. Nb1 {[%emt 0:00:39]} b6 {[%emt 0:02:19]} 14. Nd2 {[%emt 0:07:20]} Bb7 {[%emt 0:02:03]} 15. Nf3 {[%emt 0:01:36]} f5 {[%emt 0:03:33]} 16. Qd2 {[%emt 0:07:10]} Qd7 {[%emt 0:03:52]} 17. Rae1 {[%emt 0:01:34]} Rbd8 {[%emt 0:03:57]} 18. Nc1 {[%emt 0:02:46]} h6 {[%emt 0:06:40]} 19. Ba3 {[%emt 0:04:04]} Kh7 {[%emt 0:00:52]} 20. a5 {[%emt 0:00:53]} fxe4 {[%emt 0:02:51]} 21. dxe4 {[%emt 0:00:20]} Nxa5 {[%emt 0:03:40]} 22. Bxc5 {[%emt 0:00:07]} bxc5 {[%emt 0:01:44]} 23. Qxa5 {[%emt 0:00:11]} Qb5 {[%emt 0:05:16]} 24. Qd2 {[%emt 0:06:15]} Nc6 {[%emt 0:03:15]} 25. Rf2 {[%emt 0:01:17]} Qb6 {[%emt 0:01:27]} 26. Nd3 {[%emt 0:04:39]} a5 {[%emt 0:02:04]} 27. Nb2 {[%emt 0:05:36]} Qc7 {[%emt 0:01:58]} 28. Nc4 {[%emt 0:01:21]} Ba6 {[%emt 0:00:32]} 29. e5 {[%emt 0:01:24]} Bxc4 {[%emt 0:03:19]} 30. bxc4 {[%emt 0:00:07]} Nb4 {[%emt 0:01:37]} 31. Nh4 {[%emt 0:01:51]} Rg8 {[%emt 0:00:17]} 32. Be4 {[%emt 0:03:44]} Bf8 {[%emt 0:00:22]} 33. Qe2 {[%emt 0:03:43]} Rd7 {[%emt 0:01:19]} 34. Qg4 {[%emt 0:02:01]} Rdg7 {[%emt 0:00:35]} 35. Qxe6 {[%emt 0:00:49]} Qe7 {[%emt 0:00:45]} 36. Qh3 {[%emt 0:05:54]} Kh8 {[%emt 0:00:46]} 37. f5 {[%emt 0:01:08]} Qxe5 {[%emt 0:00:02]} 38. Nxg6+ {[%emt 0:01:45]} Rxg6 {[%emt 0:00:01]} 39. fxg6 {[%emt 0:00:14]} Bg7 {[%emt 0:00:31]} 40. Rf7 {[%emt 0:00:00]} Rd8 {[%emt 0:00:00]} 41. Qh4 {[%emt 0:07:29]} Re8 {[%emt 0:01:16]} 42. Ref1 {[%emt 0:04:04]} d3 {[%emt 0:01:22]} 43. cxd3 {[%emt 0:02:18]} Qd4+ {[%emt 0:00:28]} 44. R1f2 {[%emt 0:01:55]} Nxd3 {[%emt 0:00:40]} 45. Bxd3 {[%emt 0:00:24]} Qxd3 {[%emt 0:00:02]} 46. Rxg7 {[%emt 0:00:53]} 1-0

[Event "FIDE WYCC Open U14 2023"]
[Site "Montesilvano"]
[Date "2023.11.15"]
[Round "3.5"]
[White "Ljepic, Andrej"]
[Black "Lin, Leo"]
[Result "1-0"]
[ECO "B51"]
[WhiteElo "2236"]
[BlackElo "2097"]
[Annotator "ChessBase"]
[PlyCount "125"]
[EventDate "2023.11.13"]
[EventType "swiss"]
[EventCountry "ITA"]
[SourceTitle "playchess.com"]
[Source "ChessBase"]
[SourceQuality "1"]
[TimeControl "40/5400+30:1800+30"]

1. e4 c5 {[%emt 0:01:05]} 2. Nf3 {[%emt 0:00:10]} d6 {[%emt 0:00:35]} 3. Bb5+ {[%emt 0:00:06]} Nd7 {[%emt 0:00:38]} 4. O-O {[%emt 0:00:08]} a6 {[%emt 0:00:16]} 5. Bd3 {[%emt 0:00:12]} Ngf6 {[%emt 0:00:25]} 6. c3 {[%emt 0:00:18]} b5 {[%emt 0:00:18]} 7. Bc2 {[%emt 0:00:08]} Bb7 {[%emt 0:00:05]} 8. Re1 {[%emt 0:00:24]} c4 {[%emt 0:00:26]} 9. b3 {[%emt 0:01:01]} e5 {[%emt 0:02:06]} 10. Na3 {[%emt 0:04:33]} Qc7 {[%emt 0:05:27]} 11. Rb1 {[%emt 0:01:47]} cxb3 {[%emt 0:01:12]} 12. axb3 {[%emt 0:02:39]} Be7 {[%emt 0:00:44]} 13. Bb2 {[%emt 0:02:02]} O-O {[%emt 0:06:39]} 14. d4 {[%emt 0:07:26]} Rfe8 {[%emt 0:09:39]} 15. d5 {[%emt 0:04:41]} Bd8 {[%emt 0:02:00]} 16. b4 {[%emt 0:01:35]} Rc8 {[%emt 0:01:07]} 17. Qe2 {[%emt 0:02:10]} Nb6 {[%emt 0:08:05]} 18. Bb3 {[%emt 0:05:13]} Qb8 {[%emt 0:02:18]} 19. Nd2 {[%emt 0:02:53]} Nfd7 {[%emt 0:03:26]} 20. c4 {[%emt 0:01:53]} bxc4 {[%emt 0:00:17]} 21. Ndxc4 {[%emt 0:00:30]} f5 {[%emt 0:06:40]} 22. exf5 {[%emt 0:10:31]} Bxd5 {[%emt 0:12:41]} 23. Qd3 {[%emt 0:07:30]} Bxc4 {[%emt 0:17:31]} 24. Nxc4 {[%emt 0:01:50]} d5 {[%emt 0:04:32]} 25. Nxb6 {[%emt 0:00:53]} Nxb6 {[%emt 0:00:59]} 26. Bxd5+ {[%emt 0:00:17]} Nxd5 {[%emt 0:00:38]} 27. Qxd5+ {[%emt 0:00:09]} Kh8 {[%emt 0:00:04]} 28. Bxe5 {[%emt 0:01:45]} Bc7 {[%emt 0:00:07]} 29. Bxc7 {[%emt 0:04:00]} Qxc7 {[%emt 0:01:00]} 30. Rxe8+ {[%emt 0:00:47]} Rxe8 {[%emt 0:00:03]} 31. g3 {[%emt 0:02:10]} h6 {[%emt 0:00:50]} 32. Ra1 {[%emt 0:15:26]} Qb6 {[%emt 0:04:33]} 33. Qc5 {[%emt 0:05:36]} Qb7 {[%emt 0:04:00]} 34. f6 {[%emt 0:01:12]} gxf6 {[%emt 0:01:12]} 35. Qh5 {[%emt 0:00:12]} Re6 {[%emt 0:03:04]} 36. Qxh6+ {[%emt 0:00:24]} Kg8 {[%emt 0:00:01]} 37. Qg6+ {[%emt 0:00:44]} Kf8 {[%emt 0:00:36]} 38. Rd1 {[%emt 0:00:49]} Qe7 {[%emt 0:00:25]} 39. h4 {[%emt 0:01:03]} Re1+ {[%emt 0:00:37]} 40. Rxe1 {[%emt 0:00:00]} Qxe1+ {[%emt 0:00:00]} 41. Kg2 {[%emt 0:00:12]} Qe5 {[%emt 0:01:04]} 42. h5 {[%emt 0:03:29]} Qd5+ {[%emt 0:00:17]} 43. f3 {[%emt 0:01:07]} Qa2+ {[%emt 0:00:15]} 44. Kh3 {[%emt 0:00:08]} Qe6+ {[%emt 0:01:26]} 45. Kh4 {[%emt 0:00:23]} Qc4+ {[%emt 0:00:52]} 46. f4 {[%emt 0:00:27]} Qc6 {[%emt 0:00:59]} 47. h6 {[%emt 0:04:17]} Qh1+ {[%emt 0:03:02]} 48. Kg4 {[%emt 0:00:06]} Qd1+ {[%emt 0:00:27]} 49. Kf5 {[%emt 0:00:14]} Qd3+ {[%emt 0:00:23]} 50. Kxf6 {[%emt 0:00:06]} Qc3+ {[%emt 0:00:05]} 51. Ke6 {[%emt 0:00:55]} Qe3+ {[%emt 0:06:18]} 52. Kd7 {[%emt 0:01:18]} Qa7+ {[%emt 0:01:07]} 53. Kc6 {[%emt 0:00:11]} Qa8+ {[%emt 0:00:10]} 54. Kc5 {[%emt 0:00:16]} Qc8+ {[%emt 0:01:21]} 55. Qc6 {[%emt 0:00:31]} Qf5+ {[%emt 0:00:41]} 56. Kb6 {[%emt 0:00:07]} Qd3 {[%emt 0:01:24]} 57. Qc8+ {[%emt 0:03:47]} Kf7 {[%emt 0:01:19]} 58. Qc7+ {[%emt 0:00:17]} Ke8 {[%emt 0:05:44]} 59. h7 {[%emt 0:01:14]} Qd4+ {[%emt 0:01:04]} 60. Kb7 {[%emt 0:00:59]} Qxb4+ {[%emt 0:00:20]} 61. Ka8 {[%emt 0:00:07]} Qe4+ {[%emt 0:01:42]} 62. Qb7 {[%emt 0:00:05]} Qd4 {[%emt 0:00:55]} 63. h8=Q+ {[%emt 0:00:17]} 1-0

[Event "FIDE WYCC Open U14 2023"]
[Site "Montesilvano"]
[Date "2023.11.15"]
[Round "3.6"]
[White "Warchol, Kamil"]
[Black "Nurgaliyev, Sauat"]
[Result "1/2-1/2"]
[ECO "B90"]
[WhiteElo "2095"]
[BlackElo "2235"]
[Annotator "ChessBase"]
[PlyCount "114"]
[EventDate "2023.11.13"]
[EventType "swiss"]
[EventCountry "ITA"]
[SourceTitle "playchess.com"]
[Source "ChessBase"]
[SourceQuality "1"]
[TimeControl "40/5400+30:1800+30"]

1. e4 {[%emt 0:00:03]} c5 {[%emt 0:00:07]} 2. Nf3 {[%emt 0:00:06]} d6 {[%emt 0:00:08]} 3. d4 {[%emt 0:00:09]} cxd4 {[%emt 0:00:07]} 4. Nxd4 {[%emt 0:00:08]} Nf6 {[%emt 0:00:07]} 5. Nc3 {[%emt 0:00:06]} a6 {[%emt 0:00:30]} 6. Be3 {[%emt 0:00:30]} e5 {[%emt 0:00:30]} 7. Nf3 {[%emt 0:00:30]} Be7 {[%emt 0:00:30]} 8. Bc4 {[%emt 0:00:30]} O-O {[%emt 0:00:30]} 9. O-O {[%emt 0:00:30]} Be6 {[%emt 0:00:30]} 10. Bb3 {[%emt 0:00:30]} b5 {[%emt 0:00:30]} 11. Qe2 {[%emt 0:00:30]} Qc7 {[%emt 0:00:30]} 12. Rad1 {[%emt 0:00:30]} Rc8 {[%emt 0:00:30]} 13. Bg5 {[%emt 0:00:30]} Nbd7 {[%emt 0:00:30]} 14. Nh4 {[%emt 0:00:30]} g6 {[%emt 0:00:30]} 15. f4 {[%emt 0:00:30]} Bxb3 {[%emt 0:00:30]} 16. axb3 {[%emt 0:35:28]} b4 {[%emt 0:34:24]} 17. fxe5 {[%emt 0:08:49]} Nxe5 {[%emt 0:13:34]} 18. Bxf6 {[%emt 0:15:44]} Bxf6 {[%emt 0:04:33]} 19. Rxf6 {[%emt 0:01:29]} bxc3 {[%emt 0:00:25]} 20. bxc3 {[%emt 0:04:16]} Qe7 {[%emt 0:04:09]} 21. Rf4 {[%emt 0:02:35]} Qa7+ {[%emt 0:11:16]} 22. Rf2 {[%emt 0:01:41]} Rxc3 {[%emt 0:02:41]} 23. h3 {[%emt 0:08:31]} Re3 {[%emt 0:05:48]} 24. Qd2 {[%emt 0:01:47]} Rxe4 {[%emt 0:01:10]} 25. Qxd6 {[%emt 0:00:42]} Rf4 {[%emt 0:03:09]} 26. Rdf1 {[%emt 0:04:59]} Qe3 {[%emt 0:02:28]} 27. Nf3 {[%emt 0:07:42]} Nxf3+ {[%emt 0:06:30]} 28. gxf3 {[%emt 0:00:08]} Rxf3 {[%emt 0:02:00]} 29. Kg2 {[%emt 0:00:28]} Rxf2+ {[%emt 0:01:23]} 30. Rxf2 {[%emt 0:00:02]} Qe4+ {[%emt 0:00:41]} 31. Kg1 {[%emt 0:01:13]} Re8 {[%emt 0:01:25]} 32. Qxa6 {[%emt 0:02:10]} f5 {[%emt 0:01:52]} 33. Kh2 {[%emt 0:02:19]} Qe5+ {[%emt 0:00:33]} 34. Kg2 {[%emt 0:00:26]} Kg7 {[%emt 0:01:19]} 35. Qb7+ {[%emt 0:00:10]} Re7 {[%emt 0:00:19]} 36. Qf3 {[%emt 0:00:07]} h5 {[%emt 0:01:01]} 37. Rd2 {[%emt 0:01:10]} h4 {[%emt 0:01:03]} 38. Qd3 {[%emt 0:00:23]} Kh7 {[%emt 0:00:50]} 39. Qf3 {[%emt 0:00:46]} Kh6 {[%emt 0:00:54]} 40. Rf2 {[%emt 0:00:00]} Kg7 {[%emt 0:00:00]} 41. Qd3 {[%emt 0:06:32]} Qf6 {[%emt 0:03:55]} 42. Re2 {[%emt 0:04:37]} Rf7 {[%emt 0:04:14]} 43. Rd2 {[%emt 0:02:33]} Qg5+ {[%emt 0:02:25]} 44. Kh2 {[%emt 0:00:37]} Qf4+ {[%emt 0:06:04]} 45. Kg2 {[%emt 0:00:39]} Kh7 {[%emt 0:01:33]} 46. Re2 {[%emt 0:06:47]} Qc7 {[%emt 0:04:15]} 47. Qf3 {[%emt 0:02:38]} Rd7 {[%emt 0:01:39]} 48. Qf2 {[%emt 0:01:10]} Qd8 {[%emt 0:00:11]} 49. Qe3 {[%emt 0:00:41]} Qf6 {[%emt 0:01:03]} 50. Kf2 {[%emt 0:01:43]} Rf7 {[%emt 0:04:18]} 51. Qe6 {[%emt 0:02:18]} Qd4+ {[%emt 0:00:17]} 52. Kg2 {[%emt 0:00:23]} Ra7 {[%emt 0:00:45]} 53. c4 {[%emt 0:01:40]} Rb7 {[%emt 0:01:14]} 54. Qe3 {[%emt 0:01:11]} Qf6 {[%emt 0:00:53]} 55. Qf3 {[%emt 0:01:05]} Ra7 {[%emt 0:01:27]} 56. Qe3 {[%emt 0:00:20]} Qc6+ {[%emt 0:01:19]} 57. Kf2 {[%emt 0:01:00]} Rb7 {[%emt 0:00:58]} 1/2-1/2

[Event "FIDE WYCC Open U14 2023"]
[Site "Montesilvano"]
[Date "2023.11.15"]
[Round "3.7"]
[White "Brattgjerd, Isak Vinh"]
[Black "Davudov, Tunar"]
[Result "1-0"]
[ECO "B48"]
[WhiteElo "2235"]
[BlackElo "2000"]
[Annotator "ChessBase"]
[PlyCount "121"]
[EventDate "2023.11.13"]
[EventType "swiss"]
[EventCountry "ITA"]
[SourceTitle "playchess.com"]
[Source "ChessBase"]
[SourceQuality "1"]
[TimeControl "40/5400+30:1800+30"]

1. e4 {[%emt 0:00:02]} c5 {[%emt 0:00:40]} 2. Nf3 {[%emt 0:00:04]} e6 {[%emt 0:00:40]} 3. d4 {[%emt 0:00:04]} cxd4 {[%emt 0:00:26]} 4. Nxd4 {[%emt 0:00:07]} Nc6 {[%emt 0:00:30]} 5. Nc3 {[%emt 0:00:14]} Qc7 {[%emt 0:00:32]} 6. Be3 {[%emt 0:00:19]} a6 {[%emt 0:00:47]} 7. Qf3 {[%emt 0:01:13]} Nf6 {[%emt 0:02:10]} 8. O-O-O {[%emt 0:16:34]} Ne5 {[%emt 0:18:51]} 9. Qg3 {[%emt 0:02:05]} b5 {[%emt 0:28:43]} 10. Ndxb5 {[%emt 0:19:49]} axb5 {[%emt 0:03:32]} 11. Nxb5 {[%emt 0:00:07]} Qb8 {[%emt 0:18:48]} 12. Bf4 {[%emt 0:02:27]} Nxe4 {[%emt 0:04:41]} 13. Bxe5 {[%emt 0:01:56]} Nxg3 {[%emt 0:02:01]} 14. Bxb8 {[%emt 0:00:08]} Nxh1 {[%emt 0:00:22]} 15. Nc7+ {[%emt 0:00:04]} Kd8 {[%emt 0:00:07]} 16. Nxa8 {[%emt 0:00:05]} Nxf2 {[%emt 0:00:46]} 17. Bc7+ {[%emt 0:00:21]} Ke8 {[%emt 0:00:29]} 18. Re1 {[%emt 0:01:01]} Bb7 {[%emt 0:03:03]} 19. Nb6 {[%emt 0:03:27]} Bc5 {[%emt 0:03:10]} 20. Na4 {[%emt 0:02:04]} Ba7 {[%emt 0:00:36]} 21. Nc3 {[%emt 0:01:07]} Ke7 {[%emt 0:01:20]} 22. a4 {[%emt 0:10:12]} Rc8 {[%emt 0:01:02]} 23. Bg3 {[%emt 0:00:07]} d5 {[%emt 0:01:51]} 24. Nb5 {[%emt 0:15:31]} Bc5 {[%emt 0:01:03]} 25. b4 {[%emt 0:01:13]} Bxb4 {[%emt 0:00:50]} 26. Bxf2 {[%emt 0:00:02]} Bxe1 {[%emt 0:00:10]} 27. Bxe1 {[%emt 0:00:04]} Ra8 {[%emt 0:02:35]} 28. a5 {[%emt 0:01:57]} Kd7 {[%emt 0:01:15]} 29. Kb2 {[%emt 0:01:53]} Ba6 {[%emt 0:01:17]} 30. Kb3 {[%emt 0:01:42]} Rb8 {[%emt 0:00:50]} 31. Ka4 {[%emt 0:00:10]} e5 {[%emt 0:00:21]} 32. Bb4 {[%emt 0:04:02]} f6 {[%emt 0:00:38]} 33. Bc5 {[%emt 0:01:00]} Rc8 {[%emt 0:01:55]} 34. Kb4 {[%emt 0:00:17]} f5 {[%emt 0:00:39]} 35. c3 {[%emt 0:01:00]} g5 {[%emt 0:00:29]} 36. Bd3 {[%emt 0:01:24]} e4 {[%emt 0:00:30]} 37. Bc2 {[%emt 0:00:59]} f4 {[%emt 0:00:47]} 38. Ba4 {[%emt 0:01:33]} Ke6 {[%emt 0:00:29]} 39. Nd4+ {[%emt 0:00:37]} Kf6 {[%emt 0:00:25]} 40. Bb5 {[%emt 0:00:00]} Bxb5 {[%emt 0:00:00]} 41. Kxb5 {[%emt 0:07:54]} g4 {[%emt 0:13:35]} 42. a6 f3 {[%emt 0:03:56]} 43. gxf3 {[%emt 0:03:48]} exf3 {[%emt 0:01:55]} 44. Nc6 {[%emt 0:00:22]} Kg5 {[%emt 0:05:23]} 45. a7 {[%emt 0:01:03]} Ra8 {[%emt 0:01:07]} 46. Ne7 {[%emt 0:01:08]} Kh4 {[%emt 0:00:53]} 47. Nxd5 {[%emt 0:00:22]} h5 {[%emt 0:04:15]} 48. Kb6 {[%emt 0:12:29]} Kh3 {[%emt 0:01:14]} 49. Nf4+ {[%emt 0:00:34]} Kxh2 {[%emt 0:00:07]} 50. Nxh5 {[%emt 0:00:05]} Rd8 {[%emt 0:02:46]} 51. Kb7 {[%emt 0:01:16]} Rd7+ {[%emt 0:00:34]} 52. Kc6 {[%emt 0:02:39]} Rd8 {[%emt 0:00:17]} 53. Bb6 {[%emt 0:00:58]} Ra8 {[%emt 0:01:05]} 54. Kb7 {[%emt 0:00:54]} Rf8 {[%emt 0:00:31]} 55. a8=Q {[%emt 0:01:33]} Rxa8 {[%emt 0:00:29]} 56. Kxa8 {[%emt 0:00:02]} Kh3 {[%emt 0:00:30]} 57. c4 {[%emt 0:01:48]} Kh4 {[%emt 0:00:14]} 58. Nf6 {[%emt 0:00:30]} g3 {[%emt 0:00:29]} 59. Ne4 {[%emt 0:00:07]} g2 {[%emt 0:00:14]} 60. Bg1 {[%emt 0:00:28]} Kg4 {[%emt 0:00:05]} 61. c5 {[%emt 0:00:18]} 1-0

[Event "FIDE WYCC Open U14 2023"]
[Site "Montesilvano"]
[Date "2023.11.15"]
[Round "3.8"]
[White "Ji, Jiahao Eric"]
[Black "Mamedov, Edgar"]
[Result "0-1"]
[ECO "B33"]
[WhiteElo "2045"]
[BlackElo "2234"]
[Annotator "ChessBase"]
[PlyCount "80"]
[EventDate "2023.11.13"]
[EventType "swiss"]
[EventCountry "ITA"]
[SourceTitle "playchess.com"]
[Source "ChessBase"]
[SourceQuality "1"]
[TimeControl "40/5400+30:1800+30"]

1. e4 {[%emt 0:00:03]} c5 {[%emt 0:00:07]} 2. Nf3 {[%emt 0:00:03]} Nc6 {[%emt 0:00:13]} 3. d4 {[%emt 0:00:04]} cxd4 {[%emt 0:00:07]} 4. Nxd4 {[%emt 0:00:04]} Nf6 {[%emt 0:00:06]} 5. Nc3 {[%emt 0:00:04]} e5 {[%emt 0:00:05]} 6. Ndb5 {[%emt 0:00:04]} d6 {[%emt 0:00:09]} 7. Bg5 {[%emt 0:00:07]} a6 {[%emt 0:00:24]} 8. Na3 {[%emt 0:00:06]} b5 {[%emt 0:00:09]} 9. Nd5 {[%emt 0:00:45]} Be7 {[%emt 0:00:11]} 10. Bxf6 {[%emt 0:00:21]} Bxf6 {[%emt 0:00:05]} 11. c3 {[%emt 0:00:16]} Rb8 {[%emt 0:00:14]} 12. Nc2 {[%emt 0:00:18]} Bg5 {[%emt 0:00:09]} 13. a4 {[%emt 0:00:29]} bxa4 {[%emt 0:00:17]} 14. Ncb4 {[%emt 0:00:44]} Nxb4 {[%emt 0:00:11]} 15. cxb4 {[%emt 0:00:25]} O-O {[%emt 0:00:10]} 16. Rxa4 {[%emt 0:03:20]} a5 {[%emt 0:00:05]} 17. Bc4 {[%emt 0:08:20]} Bd7 {[%emt 0:05:29]} 18. Ra1 {[%emt 0:07:23]} axb4 {[%emt 0:02:11]} 19. O-O {[%emt 0:00:35]} Qc8 {[%emt 0:08:28]} 20. Bb3 {[%emt 0:07:57]} Qc5 {[%emt 0:13:13]} 21. Qh5 {[%emt 0:06:01]} h6 {[%emt 0:13:46]} 22. Rfd1 {[%emt 0:08:41]} g6 {[%emt 0:07:09]} 23. Qf3 {[%emt 0:01:22]} Kg7 {[%emt 0:01:40]} 24. h4 {[%emt 0:06:03]} Bxh4 {[%emt 0:04:31]} 25. Rdc1 {[%emt 0:00:25]} Ra8 {[%emt 0:00:30]} 26. Rxc5 {[%emt 0:05:42]} Rxa1+ {[%emt 0:00:06]} 27. Kh2 {[%emt 0:05:33]} dxc5 {[%emt 0:00:13]} 28. Qe3 {[%emt 0:03:41]} Rb1 {[%emt 0:20:10]} 29. Qd2 {[%emt 0:10:12]} Bg5 {[%emt 0:02:44]} 30. Ne3 {[%emt 0:04:44]} Bf4+ {[%emt 0:13:18]} 31. g3 {[%emt 0:00:42]} Bxe3 {[%emt 0:00:05]} 32. fxe3 {[%emt 0:01:28]} Bg4 {[%emt 0:00:33]} 33. Qc2 {[%emt 0:00:54]} Re1 {[%emt 0:04:20]} 34. Qxc5 {[%emt 0:03:52]} Re2+ {[%emt 0:00:06]} 35. Kg1 {[%emt 0:00:04]} Ra8 {[%emt 0:00:07]} 36. Qxe5+ {[%emt 0:00:59]} Kh7 {[%emt 0:00:14]} 37. Qd5 {[%emt 0:00:49]} Ra1+ {[%emt 0:00:07]} 38. Bd1 {[%emt 0:00:10]} Rxd1+ {[%emt 0:00:09]} 39. Qxd1 {[%emt 0:00:17]} Rg2+ {[%emt 0:00:04]} 40. Kxg2 {[%emt 0:00:00]} Bxd1 {[%emt 0:00:00]} 0-1